fUSD/lending_fUSD_20260301
["ID","MTS","AMOUNT","RATE_DAILY","PERIOD"]
[406972140,1772385031397,-6419.00825084,0.00013658,2]
[406972141,1772385031409,-605.6100191,0.00013658,2]
[406972142,1772385031420,-1388.91954942,0.00013658,2]
[406972143,1772385031431,-805.47043148,0.00013658,2]
[406972144,1772385031442,-260.20382335,0.00013658,2]
[406972145,1772385031458,-3725.59006673,0.00013658,2]
[406972146,1772385031468,-2397.98993327,0.00013686,2]
[406972147,1772385031479,-2141.50928177,0.00013686,2]
[406972148,1772385031490,-3548.83577193,0.00013686,2]
[406972149,1772385031500,-500.0,0.00013699,2]
[406972150,1772385031509,-200.0,0.000137,5]
[406972151,1772385031519,-214.63921807,0.000137,2]
[406972152,1772385031528,-150.0,0.00013785,2]
[406972153,1772385031538,-87046.79061207,0.00013786,2]
[406972154,1772385031549,-19128.08773394,0.00013786,2]
[406972155,1772385031560,-1931.43592063,0.00013786,2]
[406972156,1772385031571,-4182.04686668,0.00013786,2]
[406972157,1772385031583,-1014.31929586,0.00013786,2]
[406972158,1772385031620,150.0,0.0001611,117]
[406972164,1772385037341,-644.36616692,0.000137,2]
[406972165,1772385037350,-1408.49142473,0.00013786,2]
[406972166,1772385037360,-14395.85060654,0.00013786,2]
[406972167,1772385037371,-50548.99343955,0.00013786,2]
[406972168,1772385037379,-71469.5625499,0.00013786,2]
[406972169,1772385037397,-15872.94042967,0.00013786,2]
[406972170,1772385037503,-1187.18876691,0.00013786,2]
[406972171,1772385037513,-97901.05840232,0.00013786,2]
[406972172,1772385037523,-2000.86613085,0.00013786,2]
[406972173,1772385037560,-904.82,0.00013786,2]
[406972174,1772385037570,-3753.19685657,0.00013786,2]
[406972344,1772385039553,-1711.015875,0.00013786,2]
[406972345,1772385039869,-273.49255818,0.00013786,2]
[406972358,1772385045354,-9938.55,0.00013786,2]
[406972359,1772385045407,-394.2,0.00013786,2]
[406972360,1772385045543,-437205.17631739,0.00013786,2]
[406972361,1772385045722,-361.70306024,0.00013786,2]
[406972362,1772385045734,-1071.50833082,0.00013786,2]
[406972367,1772385842800,161.3,6.477e-05,2]
[406972369,1772385995158,150.0,0.0001611,117]
[406972370,1772386106143,507.46702,0.0001711,117]
[406972379,1772386231443,-161.3,9.716e-05,2]
[406972380,1772386231454,-91.0648,9.716e-05,2]
[406972381,1772386231500,-138.9352,9.716e-05,2]
[406972382,1772386231509,-1586.0648,0.00010688,2]
[406972383,1772386231523,-484.55790331,0.00010688,2]
[406972384,1772386231535,-316.61743736,0.00010688,2]
[406972385,1772386231545,-193.55068996,0.00010688,2]
[406972386,1772386231555,-1745.68111451,0.00012197,2]
[406972387,1772386231568,-490.32888549,0.00012197,2]
[406972388,1772386231578,-376.13111451,0.00012712,2]
[406972389,1772386231590,-823.86888549,0.00012712,2]
[406972390,1772386231600,-500.0,0.00012713,2]
[406972391,1772386231610,-161.3,0.00012955,2]
[406972392,1772386231619,-1600.0,0.0001297,2]
[406972393,1772386231628,-220.53111451,0.00013013,2]
[406972394,1772386231640,-79.46888549,0.00013013,2]
[406972395,1772386231649,-232.0,0.00013013,2]
[406972396,1772386231659,-149.04460046,0.00013013,2]
[406972398,1772386231672,-150.95539954,0.00013013,2]
[406972400,1772386231682,-296.274546,0.00013014,2]
[406972402,1772386231691,-384.41963317,0.00013074,2]
[406972404,1772386231703,-2307.83693534,0.00013074,2]
[406972407,1772386231715,-327.54450534,0.00013074,2]
[406972409,1772386231726,-1568.24475941,0.00013175,2]
[406972413,1772386231753,-1017.93524059,0.00013175,2]
[406972415,1772386231762,-500.0,0.00013178,2]
[406972416,1772386231772,-226.84,0.0001334,2]
[406972417,1772386231781,-611.66073269,0.000135,2]
[406972418,1772386231791,-1300.23887257,0.000135,2]
[406972419,1772386231800,-42543.02839013,0.00013586,2]
[406972420,1772386231811,-83150.41399178,0.00013586,2]
[406972421,1772386231822,-723.749995,0.00013586,2]
[406972424,1772386237556,-5486.62137138,0.00013586,2]
[406972425,1772386237568,-48851.88963607,0.00013586,2]
[406972469,1772386239940,-668.25999988,0.00013586,2]
[406972470,1772386239951,-2976.98789456,0.00013586,2]
[406972471,1772386239962,-339.874605,0.00013586,2]
[406972472,1772386239974,-68888.0,0.00013586,2]
[406972473,1772386239988,-427.96000002,0.00013586,2]
[406972474,1772386239999,-7089.44173183,0.00013586,2]
[406972492,1772386242602,-632.8704,0.00013586,2]
[406972493,1772386242656,-424.394407,0.00013586,2]
[406972494,1772386243443,-536.99066842,0.00013586,2]
[406972532,1772386245834,-729.60387976,0.00013586,2]
[406972540,1772387259028,150.0,0.0001611,117]
[406972542,1772387431649,-920.94,0.0001,2]
[406972543,1772387431658,-38.12645445,0.00011907,2]
[406972544,1772387431670,-128.53354555,0.00011907,2]
[406972545,1772387431680,-1500.0,0.00012075,2]
[406972546,1772387431689,-240.36,0.00012155,2]
[406972547,1772387431698,-166.66,0.00012158,2]
[406972548,1772387431706,-200.0,0.00012188,2]
[406972549,1772387431714,-256.04413676,0.00012282,2]
[406972550,1772387431724,-980.58586324,0.00012282,2]
[406972551,1772387431732,-1000.0,0.00012331,2]
[406972552,1772387431740,-126.69846521,0.00012362,2]
[406972553,1772387431749,-149.45449079,0.00012362,2]
[406972554,1772387431758,-166.66,0.00012409,2]
[406972555,1772387431767,-501.52740981,0.000126,4]
[406972556,1772387431779,-98.47259019,0.000126,4]
[406972557,1772387431788,-480.0,0.00012626,2]
[406972558,1772387431798,-496.95740981,0.00012627,2]
[406972559,1772387431809,-482.5225775,0.00012627,2]
[406972560,1772387431820,-3020.52001269,0.00012627,2]
[406972561,1772387431829,-166.66,0.00012659,2]
[406972562,1772387431838,-290.0,0.00012667,2]
[406972563,1772387431847,-300.0,0.00012693,2]
[406972564,1772387431856,-250.0,0.00012694,2]
[406972565,1772387431865,-236.0,0.00012694,2]
[406972566,1772387431875,-464.6380238,0.000127,4]
[406972567,1772387431886,-576.1221441,0.000127,4]
[406972568,1772387431898,-259.2398321,0.000127,4]
[406972569,1772387431907,-1740.7601679,0.000128,4]
[406972570,1772387431919,-159.2398321,0.000128,4]
[406972571,1772387431928,-261.02,0.00012803,2]
[406972572,1772387431937,-500.0,0.00012822,2]
[406972573,1772387431949,-30.84012073,0.0001283,2]
[406972574,1772387431964,-209.51987927,0.0001283,2]
[406972575,1772387431973,-342.058226,0.00012884,2]
[406972576,1772387431982,-123.42189473,0.000129,4]
[406972577,1772387431993,-2476.57810527,0.000129,4]
[406972578,1772387432002,-166.66,0.0001291,2]
[406972579,1772387432011,-200.0,0.00012913,2]
[406972580,1772387432019,-500.0,0.00012932,2]
[406972581,1772387432029,-4000.0,0.00012943,2]
[406972582,1772387432040,-176.297923,0.00013013,2]
[406972584,1772387432049,-280.46,0.00013026,2]
[406972585,1772387432059,-150.0,0.00013026,2]
[406972587,1772387432069,-166.68,0.00013089,2]
[406972589,1772387432078,-150.0,0.00013092,2]
[406972591,1772387432087,-150.0,0.00013092,2]
[406972593,1772387432097,-500.0,0.00013092,2]
[406972595,1772387432105,-500.0,0.00013092,2]
[406972597,1772387432115,-150.0,0.00013092,2]
[406972599,1772387432124,-150.0,0.00013092,2]
[406972601,1772387432134,-150.0,0.00013092,2]
[406972603,1772387432143,-150.0,0.00013092,2]
[406972605,1772387432152,-150.0,0.00013092,2]
[406972607,1772387432161,-256.63969308,0.00013092,2]
[406972609,1772387432170,-150.0,0.00013092,2]
[406972611,1772387432180,-919.0374,0.00013098,2]
[406972612,1772387432189,-152.83663743,0.00013147,2]
[406972613,1772387432199,-500.0,0.00013147,2]
[406972614,1772387432208,-150.0,0.00013147,2]
[406972615,1772387432219,-150.0,0.00013147,2]
[406972616,1772387432228,-500.0,0.00013147,2]
[406972617,1772387432237,-207.76379391,0.00013147,2]
[406972618,1772387432247,-150.0,0.00013147,2]
[406972619,1772387432256,-500.0,0.00013147,2]
[406972620,1772387432265,-19770.3931,0.0001316,2]
[406972621,1772387432274,-2500.0,0.0001316,2]
[406972622,1772387432283,-166.66,0.00013161,2]
[406972623,1772387432292,-333.69779274,0.00013165,2]
[406972624,1772387432302,-500.0,0.00013178,2]
[406972625,1772387432311,-150.0,0.00013191,2]
[406972626,1772387432320,-150.0,0.00013191,2]
[406972627,1772387432458,-500.0,0.00013191,2]
[406972628,1772387432472,-151.0,0.00013197,2]
[406972629,1772387432482,-8993.17627245,0.000132,2]
[406972630,1772387432492,-1264.00079331,0.000132,2]
[406972631,1772387432502,-19431.28320585,0.000132,2]
[406972632,1772387432512,-150.0,0.00013202,2]
[406972633,1772387432522,-150.0,0.00013202,2]
[406972634,1772387432532,-150.0,0.00013202,2]
[406972635,1772387432542,-544.0,0.00013233,2]
[406972636,1772387432552,-150.0,0.00013246,2]
[406972637,1772387432562,-150.0,0.00013246,2]
[406972638,1772387432571,-500.0,0.00013246,2]
[406972639,1772387432581,-241.50191728,0.0001325,2]
[406972640,1772387432590,-165.94619115,0.00013256,2]
[406972641,1772387432600,-150.0,0.00013256,2]
[406972642,1772387432610,-150.0,0.00013256,2]
[406972643,1772387432620,-151.0,0.00013257,2]
[406972644,1772387432630,-4000.0,0.00013258,2]
[406972645,1772387432640,-500.0,0.00013259,2]
[406972646,1772387432650,-500.0,0.00013259,2]
[406972647,1772387432659,-500.0,0.00013259,2]
[406972648,1772387432669,-449.57555187,0.00013259,2]
[406972649,1772387432678,-160.88049104,0.00013259,2]
[406972650,1772387432688,-37819.9569305,0.0001326,2]
[406972651,1772387432700,-904.11328782,0.0001326,2]
[406972652,1772387432712,-2107.37240693,0.0001326,2]
[406972657,1772387437714,-423.264,0.0001326,2]
[406972658,1772387437727,-2225.31323038,0.0001326,2]
[406972659,1772387437739,-587.04307669,0.0001326,2]
[406972661,1772387437769,-654.6,0.0001326,2]
[406972662,1772387437780,-66898.25710857,0.0001326,2]
[406972663,1772387437826,-906.8680137,0.0001326,2]
[406972664,1772387437931,-63227.50169754,0.0001326,2]
[406972665,1772387437983,-18680.0,0.0001326,2]
[406972666,1772387438039,-1323.52,0.0001326,2]
[406972671,1772387439934,-841707.12756592,0.0001326,2]
[406972672,1772387439946,-1335.42542565,0.0001326,2]
[406972673,1772387439962,-378.66,0.0001326,2]
[406972674,1772387439990,-12415.55826817,0.0001326,2]
[406972675,1772387440002,-1004.71960781,0.0001326,2]
[406972676,1772387440363,-534.0,0.0001326,2]
[406972677,1772387440375,-275.77490633,0.0001326,2]
[406972692,1772387442827,-15561.7475733,0.0001326,2]
[406972696,1772387442986,-43844.19930904,0.0001326,2]
[406972697,1772387442999,-1344.6258791,0.0001326,2]
[406972698,1772387443013,-49426.85118,0.0001326,2]
[406972737,1772387445617,-6252.27874975,0.0001326,2]
[406972738,1772387445935,-500.0,0.0001326,2]
[406972739,1772387445946,-392.76,0.0001326,2]
[406972740,1772387445958,-327.7,0.0001326,2]
[406972750,1772388096440,-2333.66167981,0.00012243,2]
[406972751,1772388099161,-10000.01,0.00012243,2]
[406972752,1772388338842,-1863.34,0.00011507,2]
[406972755,1772388512547,438.63,5.949e-05,2]
[406972756,1772388512765,94.52828,6.262e-05,2]
[406972757,1772388512794,344.10172,6.262e-05,2]
[406972758,1772388513002,438.63,6.575e-05,2]
[406972759,1772388513293,438.63,6.888e-05,2]
[406972760,1772388513452,438.63,7.201e-05,2]
[406972761,1772388513658,438.63,7.514e-05,2]
[406972762,1772388513849,438.63,7.828e-05,2]
[406972763,1772388514049,438.63,8.141e-05,2]
[406972764,1772388514265,438.63,8.454e-05,2]
[406972765,1772388514468,438.63,8.767e-05,2]
[406972766,1772388514681,438.63,9.08e-05,2]
[406972767,1772388515264,438.63,9.393e-05,2]
[406972782,1772388631931,-438.63,9.706e-05,2]
[406972783,1772388631945,-438.63,0.00010019,2]
[406972784,1772388631955,-438.63,0.00010332,2]
[406972785,1772388631965,-438.63,0.00010645,2]
[406972786,1772388631974,-300.0,0.00010677,2]
[406972787,1772388631983,-873.26044185,0.00010677,2]
[406972788,1772388631992,-377.41955815,0.00010677,2]
[406972789,1772388632003,-1000.0,0.00010677,2]
[406972790,1772388632021,-292.97700002,0.00010677,2]
[406972791,1772388632041,-3329.60344183,0.00010677,2]
[406972792,1772388632049,-193.0,0.00010677,2]
[406972793,1772388632059,-438.63,0.00010959,2]
[406972794,1772388632068,-438.63,0.00011272,2]
[406972795,1772388632076,-438.63,0.00011585,2]
[406972796,1772388632086,-5832.8299848,0.000116,2]
[406972797,1772388632095,-500.0,0.00011727,2]
[406972798,1772388632104,-250.0,0.00011792,2]
[406972799,1772388632113,-438.63,0.00011898,2]
[406972800,1772388632121,-1200.0,0.00012077,2]
[406972804,1772388632290,-2059.37,0.00012078,2]
[406972805,1772388632298,-1199.11469588,0.00012142,2]
[406972806,1772388632307,-4416.32832019,0.00012243,2]
[406972809,1772388632316,-7312.97,0.00012248,2]
[406972810,1772388632324,-150.0,0.00012269,2]
[406972812,1772388632331,-327.62991,0.00012343,2]
[406972814,1772388632339,-327.494419,0.00012489,2]
[406972816,1772388632347,-370.225639,0.00012489,2]
[406972818,1772388632355,-1199.11469587,0.00012518,2]
[406972820,1772388632361,-500.0,0.00012598,2]
[406972822,1772388632369,-1100.0,0.000126,4]
[406972824,1772388632377,-250.0,0.00012658,2]
[406972826,1772388632383,-2200.0,0.000127,4]
[406972827,1772388632389,-3400.0,0.000128,4]
[406972829,1772388632396,-500.0,0.00012849,2]
[406972831,1772388632404,-1199.11469587,0.00012893,2]
[406972833,1772388632412,-150.0,0.00012893,2]
[406972834,1772388632419,-4500.0,0.000129,4]
[406972836,1772388632427,-1106.00069412,0.0001296,2]
[406972838,1772388632435,-205.09,0.0001296,2]
[406972840,1772388632443,-2500.0,0.0001296,2]
[406972841,1772388632452,-222.46519516,0.0001296,2]
[406972842,1772388632459,-250.0,0.00012971,2]
[406972843,1772388632465,-150.0,0.00012982,2]
[406972844,1772388632472,-150.0,0.00012982,2]
[406972845,1772388632479,-150.0,0.00012982,2]
[406972846,1772388632486,-150.0,0.00012985,2]
[406972847,1772388632494,-150.0,0.00012985,2]
[406972848,1772388632501,-200.0,0.00012985,2]
[406972849,1772388632508,-150.0,0.00012985,2]
[406972850,1772388632515,-500.0,0.00012985,2]
[406972851,1772388632521,-150.0,0.00012985,2]
[406972852,1772388632528,-14518.72153222,0.00012992,2]
[406972853,1772388632540,-2969.43335309,0.00012992,2]
[406972854,1772388632550,-3047.01752312,0.00012992,2]
[406972866,1772388638115,-640.93868497,0.00012992,2]
[406972867,1772388638130,-4405.90243716,0.00012992,2]
[406972868,1772388638139,-2015.242,0.00012993,2]
[406972870,1772388638149,-193.395,0.00012993,2]
[406972872,1772388638158,-250.0,0.00013037,2]
[406972874,1772388638168,-150.0,0.00013037,2]
[406972876,1772388638177,-150.0,0.00013037,2]
[406972877,1772388638186,-150.0,0.0001304,2]
[406972880,1772388638196,-200.0,0.0001304,2]
[406972883,1772388638205,-500.0,0.0001304,2]
[406972886,1772388638214,-250.0,0.0001304,2]
[406972889,1772388638223,-205.70401297,0.0001304,2]
[406972891,1772388638231,-261.39766334,0.00013048,2]
[406972893,1772388638240,-1320.8208603,0.00013048,2]
[406972895,1772388638250,-7526.09888777,0.00013048,2]
[406972897,1772388638260,-151.0,0.00013057,2]
[406972898,1772388638270,-500.0,0.00013059,2]
[406972900,1772388638279,-500.0,0.00013059,2]
[406972902,1772388638289,-500.0,0.00013059,2]
[406972905,1772388638299,-500.0,0.00013059,2]
[406972907,1772388638308,-433.65348897,0.00013059,2]
[406972909,1772388638317,-500.0,0.00013059,2]
[406972911,1772388638326,-500.0,0.00013059,2]
[406972913,1772388638335,-500.0,0.00013059,2]
[406972915,1772388638344,-500.0,0.00013059,2]
[406972917,1772388638353,-500.0,0.00013059,2]
[406972919,1772388638362,-500.0,0.00013059,2]
[406972921,1772388638371,-500.0,0.00013059,2]
[406972923,1772388638380,-500.0,0.00013059,2]
[406972925,1772388638389,-500.0,0.00013059,2]
[406972927,1772388638399,-500.0,0.00013059,2]
[406972929,1772388638408,-188.47708444,0.00013059,2]
[406972931,1772388638417,-500.0,0.00013059,2]
[406972933,1772388638426,-500.0,0.00013059,2]
[406972935,1772388638436,-500.0,0.00013059,2]
[406972937,1772388638445,-500.0,0.00013059,2]
[406972939,1772388638454,-171629.25657127,0.0001306,2]
[406972941,1772388638466,-3216.5170958,0.0001306,2]
[406972943,1772388638476,-29200.0,0.0001306,2]
[406973073,1772388640109,-379.35399993,0.0001306,2]
[406973074,1772388640120,-595.85407216,0.0001306,2]
[406973075,1772388640132,-332.7,0.0001306,2]
[406973076,1772388640144,-1506.309608,0.0001306,2]
[406973077,1772388640157,-841707.12756592,0.0001306,2]
[406973122,1772388646227,-417.37929,0.0001306,2]
[406973135,1772389832099,-191.8,0.0001,2]
[406973136,1772389832110,-250.0,0.000105,2]
[406973137,1772389832120,-195.0,0.00011,2]
[406973138,1772389832130,-250.0,0.00011,2]
[406973140,1772389832142,-1157.585495,0.00011519,2]
[406973141,1772389832152,-195.0,0.00011577,2]
[406973142,1772389832161,-1000.0,0.00011956,2]
[406973143,1772389832170,-379.81357415,0.00011967,2]
[406973144,1772389832181,-160.8660825,0.00011967,2]
[406973145,1772389832190,-289.26938955,0.00011967,2]
[406973146,1772389832199,-1200.0,0.00012065,2]
[406973147,1772389832209,-4000.0,0.00012066,2]
[406973148,1772389832219,-292.98,0.00012114,2]
[406973149,1772389832229,-300.0,0.00012116,2]
[406973150,1772389832239,-300.0,0.00012116,2]
[406973151,1772389832248,-300.0,0.00012116,2]
[406973152,1772389832258,-1600.0,0.00012117,2]
[406973153,1772389832268,-166.66,0.00012266,2]
[406973154,1772389832278,-4000.0,0.00012368,2]
[406973155,1772389832288,-700.0,0.000126,4]
[406973156,1772389832298,-500.0,0.00012635,2]
[406973157,1772389832308,-4000.0,0.0001267,2]
[406973158,1772389832318,-1500.0,0.000127,4]
[406973159,1772389832327,-150.0,0.00012759,2]
[406973160,1772389832336,-7284.47278068,0.0001276,2]
[406973161,1772389832346,-4133.1798,0.0001276,2]
[406973162,1772389832356,-2500.0,0.0001276,2]
[406973163,1772389832365,-1000.0,0.0001276,2]
[406973164,1772389832375,-3548.83577193,0.0001276,2]
[406973165,1772389832384,-166.66,0.00012772,2]
[406973166,1772389832394,-880.5472402,0.00012777,2]
[406973167,1772389832405,-245.81151491,0.00012777,2]
[406973168,1772389832414,-5017.39925852,0.00012777,2]
[406973169,1772389832424,-2300.0,0.000128,4]
[406973170,1772389832434,-500.0,0.00012852,2]
[406973171,1772389832443,-431.4814748,0.00012852,2]
[406973172,1772389832453,-151.0,0.00012857,2]
[406973173,1772389832462,-500.0,0.00012859,2]
[406973174,1772389832471,-1612.194,0.00012859,2]
[406973175,1772389832481,-154.716,0.00012859,2]
[406973176,1772389832490,-500.0,0.00012859,2]
[406973177,1772389832499,-218.53609959,0.00012859,2]
[406973178,1772389832509,-187.21536041,0.00012859,2]
[406973179,1772389832519,-500.0,0.00012859,2]
[406973180,1772389832528,-500.0,0.00012859,2]
[406973181,1772389832537,-500.0,0.00012859,2]
[406973182,1772389832546,-500.0,0.00012859,2]
[406973183,1772389832556,-500.0,0.00012859,2]
[406973184,1772389832566,-500.0,0.00012859,2]
[406973185,1772389832575,-500.0,0.00012859,2]
[406973186,1772389832585,-500.0,0.00012859,2]
[406973187,1772389832594,-500.0,0.00012859,2]
[406973188,1772389832604,-500.0,0.00012859,2]
[406973189,1772389832613,-500.0,0.00012859,2]
[406973190,1772389832623,-500.0,0.00012859,2]
[406973191,1772389832633,-500.0,0.00012859,2]
[406973192,1772389832642,-500.0,0.00012859,2]
[406973193,1772389832651,-313.15861721,0.00012859,2]
[406973194,1772389832661,-500.0,0.00012859,2]
[406973195,1772389832671,-35386.98848786,0.0001286,2]
[406973196,1772389832683,-19696.11931348,0.0001286,2]
[406973197,1772389832694,-575.75,0.0001286,2]
[406973198,1772389832705,-1424.51542341,0.0001286,2]
[406973199,1772389832716,-2162.61598113,0.0001286,2]
[406973200,1772389832727,-944.43366513,0.0001286,2]
[406973201,1772389832739,-1254.30213,0.0001286,2]
[406973202,1772389832749,-2072.84178342,0.0001286,2]
[406973203,1772389832760,-1707.99758221,0.0001286,2]
[406973207,1772389838117,-311077.99877269,0.0001286,2]
[406973208,1772389838128,-637.47690132,0.0001286,2]
[406973209,1772389838139,-1548.78893979,0.0001286,2]
[406973210,1772389838153,-4151.66275104,0.0001286,2]
[406973211,1772389838163,-6814.94453654,0.0001286,2]
[406973212,1772389838231,-863.73012948,0.0001286,2]
[406973213,1772389838243,-12496.31740234,0.0001286,2]
[406973214,1772389838254,-1329.13672789,0.0001286,2]
[406973215,1772389838265,-2181.6451335,0.0001286,2]
[406973216,1772389838289,-65004.03976872,0.0001286,2]
[406973217,1772389838300,-313.43549706,0.0001286,2]
[406973310,1772389840862,-396.53250372,0.0001286,2]
[406973312,1772389840874,-664.795,0.0001286,2]
[406973330,1772389843180,-575.6954453,0.0001286,2]
[406973331,1772389843291,-259.94407701,0.0001286,2]
[406973332,1772389843347,-335.04991627,0.0001286,2]
[406973334,1772389845971,-1547.12667256,0.0001286,2]
[406973335,1772389846030,-2618.69337497,0.0001286,2]
[406973336,1772389846088,-42929.44146627,0.0001286,2]
[406973349,1772390035363,5531.0,0.000104,5]
[406973350,1772390035603,5531.0,0.000102,3]
[406973351,1772390067818,5531.0,0.000104,5]
[406973352,1772390068053,5531.0,0.000102,3]
[406973353,1772390099377,5531.0,0.000104,5]
[406973354,1772390099591,5531.0,0.000102,3]
[406973355,1772390131151,5531.0,0.000104,5]
[406973356,1772390131384,5531.0,0.000102,3]
[406973357,1772390162704,5531.0,0.000104,5]
[406973358,1772390162924,5531.0,0.000102,3]
[406973359,1772390171545,158.0,0.000102,3]
[406973360,1772390194249,5531.0,0.000104,5]
[406973361,1772390194466,5531.0,0.000102,3]
[406973362,1772390225733,5531.0,0.000104,5]
[406973363,1772390226101,5531.0,0.000102,3]
[406973364,1772390228835,158.0,0.000102,3]
[406973365,1772390257422,4913.0,0.000104,5]
[406973366,1772390286737,158.0,0.000102,3]
[406973367,1772390346461,158.0,0.000102,3]
[406973379,1772391032127,-240.0,0.00010997,2]
[406973381,1772391032138,-150.0,0.00011267,2]
[406973384,1772391032147,-166.66,0.00011344,2]
[406973386,1772391032158,-615.71552332,0.00011394,2]
[406973389,1772391032180,-164.05447668,0.00011394,2]
[406973392,1772391032190,-500.0,0.00011425,2]
[406973394,1772391032200,-421.3455233,0.00011518,2]
[406973395,1772391032212,-797.59445327,0.00011518,2]
[406973396,1772391032224,-281.06002343,0.00011518,2]
[406973398,1772391032234,-500.0,0.00011534,2]
[406973399,1772391032244,-166.66,0.00011583,2]
[406973400,1772391032254,-234.518449,0.00011614,2]
[406973401,1772391032267,-65.481551,0.00011614,2]
[406973402,1772391032276,-300.0,0.00011614,2]
[406973403,1772391032287,-1200.0,0.00011614,2]
[406973404,1772391032296,-300.0,0.00011614,2]
[406973405,1772391032306,-300.0,0.00011614,2]
[406973406,1772391032316,-6679.21,0.00011615,2]
[406973407,1772391032325,-500.0,0.00011699,2]
[406973408,1772391032334,-166.66,0.00011822,2]
[406973409,1772391032345,-500.0,0.00011945,2]
[406973410,1772391032355,-166.66,0.00012061,2]
[406973411,1772391032364,-256.12,0.00012067,2]
[406973412,1772391032374,-1250.68,0.00012097,2]
[406973413,1772391032385,-202.92107206,0.00012102,2]
[406973414,1772391032394,-5927.2,0.00012233,2]
[406973416,1772391032404,-166.66,0.000123,2]
[406973418,1772391032414,-290.09,0.00012347,2]
[406973420,1772391032423,-500.0,0.000125,4]
[406973422,1772391032432,-166.66,0.00012538,2]
[406973424,1772391032442,-13992.71958161,0.0001256,2]
[406973426,1772391032453,-300.03734859,0.0001256,2]
[406973428,1772391032470,-721.03256091,0.0001256,2]
[406973429,1772391032483,-1148.76047939,0.0001256,2]
[406973430,1772391032494,-1249.03944653,0.0001256,2]
[406973431,1772391032513,-2565.4806256,0.0001256,2]
[406973432,1772391032523,-1100.0,0.000126,4]
[406973433,1772391032533,-150.0,0.000126,2]
[406973434,1772391032543,-151.0,0.00012656,2]
[406973435,1772391032555,-42563.86567655,0.00012659,2]
[406973436,1772391032566,-83285.80610163,0.00012659,2]
[406973437,1772391032579,-2932.00000001,0.00012659,2]
[406973438,1772391032591,-638.34053726,0.00012659,2]
[406973439,1772391038354,-2448.8,0.00012659,2]
[406973440,1772391038409,-509.81206297,0.00012659,2]
[406973441,1772391038463,-1104.41822772,0.00012659,2]
[406973442,1772391038474,-415424.50996008,0.00012659,2]
[406973614,1772391040611,-97391.87683908,0.00012659,2]
[406973615,1772391040630,-920059.90073314,0.00012659,2]
[406973616,1772391040641,-488.27091467,0.00012659,2]
[406973617,1772391040730,-1130.28046647,0.0001256,2]
[406973618,1772391040740,-933152.39894689,0.00012659,2]
[406973619,1772391040750,-621.0561,0.0001266,2]
[406973620,1772391040759,-150.8128,0.0001266,2]
[406973621,1772391040769,-163.87434328,0.0001266,2]
[406973622,1772391040779,-151.17337405,0.00012683,2]
[406973623,1772391040788,-578.20924308,0.00012683,2]
[406973624,1772391040798,-174.61919141,0.00012683,2]
[406973625,1772391040807,-500.0,0.00012683,2]
[406973626,1772391040816,-500.0,0.00012683,2]
[406973627,1772391040826,-500.0,0.00012683,2]
[406973628,1772391040835,-500.0,0.00012683,2]
[406973629,1772391040846,-500.0,0.00012683,2]
[406973630,1772391040855,-500.0,0.00012683,2]
[406973631,1772391040865,-500.0,0.00012683,2]
[406973632,1772391040875,-500.0,0.00012683,2]
[406973633,1772391040884,-500.0,0.00012683,2]
[406973634,1772391040894,-500.0,0.00012683,2]
[406973635,1772391040904,-251.08451385,0.00012683,2]
[406973636,1772391040913,-629.43618668,0.00012683,2]
[406973637,1772391040923,-250.0,0.00012683,2]
[406973638,1772391040932,-250.0,0.00012683,2]
[406973639,1772391040942,-250.0,0.00012683,2]